bitfinex/quotes_SOLUSD_20250806
["timestamp","ask_amount","ask_price","bid_price","bid_amount"]
[1754452899253,8.5850912,161.94,161.92,43.06]
[1754452900944,9.2750912,161.94,161.92,132.16]
[1754452902526,8.5850912,161.94,161.92,132.16]
[1754452902817,8.5850912,161.94,161.92,132.85]
[1754452904050,8.5850912,161.94,161.92,132.16]
[1754452905354,26.0,161.94,161.92,132.16]
[1754452905558,34.5850912,161.94,161.92,132.85]
[1754452905852,26.0,161.97,161.92,138.33582134]
[1754452906039,26.0,161.97,161.93,6.86539474]
[1754452906235,34.5850912,161.97,161.94,43.06]
[1754452906543,0.03,161.99,161.95,0.69]
[1754452906750,0.03,161.99,161.96,43.06]
[1754452906957,26.0,161.98,161.97,0.69]
[1754452907736,26.03,161.99,161.97,0.69]
[1754452907939,26.03,161.99,161.97,6.86379953]
[1754452908766,0.03,161.99,161.98,0.69]
[1754452909270,0.03,161.99,161.98,43.08]
[1754452910166,0.03,161.99,161.98,49.25360167]
[1754452910758,0.03,161.99,161.98,49.94360167]
[1754452911952,0.03,161.99,161.98,58.52869287]
[1754452912154,0.03,161.99,161.98,58.67085444]
[1754452914847,0.03,161.99,161.98,147.77085444]
[1754452918167,0.03,162.01,161.99,0.14216157]
[1754452918371,0.03,162.01,162.0,52.49725277]
[1754452920400,0.03,162.01,162.0,58.67009227]
[1754452923279,0.03,162.01,162.0,59.28737622]
[1754452925581,0.03,162.02,162.01,0.14216157]
[1754452925779,0.03,162.02,162.01,9.40725277]
[1754452926795,0.03,162.02,162.01,15.57971126]
[1754452926998,0.03,162.02,162.01,16.1969571]
[1754452928298,0.03,162.03,162.01,16.1969571]
[1754452928608,0.03,162.03,162.02,52.44725277]
[1754452928908,0.03,162.03,162.02,67.55346834]
[1754452929089,0.03,162.04,162.03,0.14216157]
[1754452929286,0.03,162.04,162.03,99.12442242]
[1754452929492,0.03,162.04,162.03,97.82725277]
[1754452930494,0.03,162.04,162.03,103.99894936]
[1754452931504,0.03,162.04,162.03,147.03894936]
[1754452933510,0.03,162.04,162.03,147.71894936]
[1754452934004,0.03,162.04,162.03,147.03894936]
[1754452934800,0.03,162.04,162.03,147.71894936]
[1754452935300,0.03,162.04,162.03,147.03894936]
[1754452936809,0.03,162.04,162.03,138.45385816]
[1754452937105,0.72,162.04,162.03,138.27169659]
[1754452937295,0.72,162.04,162.03,95.27169659]
[1754452937480,0.72,162.04,162.03,138.29169659]
[1754452938107,0.03,162.04,162.03,146.87678779]
[1754452938780,0.72,162.04,162.03,146.87678779]
[1754452939989,0.72,162.04,162.03,138.29169659]
[1754452940405,0.72,162.04,162.03,95.27169659]
[1754452940610,0.72,162.04,162.03,138.27169659]
[1754452940815,0.03,162.08,162.03,138.27169659]
[1754452940998,8.5850912,162.07,162.03,138.27169659]
[1754452942534,0.03,162.08,162.03,138.27169659]
[1754452942708,8.6150912,162.08,162.04,0.68]
[1754452943018,8.6150912,162.08,162.05,43.0]
[1754452943019,0.69,162.07,162.05,43.0]
[1754452944504,0.69,162.06,162.05,43.0]
[1754452945211,0.69,162.06,162.05,132.1]
[1754452945412,9.2750912,162.06,162.05,89.1]
[1754452945611,9.2750912,162.06,162.05,132.08]
[1754452946097,9.2750912,162.07,162.05,132.08]
[1754452946913,9.2750912,162.07,162.06,42.98]
[1754452947913,9.2750912,162.07,162.05,132.08]
[1754452948099,8.5850912,162.06,162.05,132.08]
[1754452948290,9.2750912,162.06,162.05,132.08]
[1754452951332,9.2750912,162.06,162.05,42.98]
[1754452952317,9.2750912,162.06,162.04,89.1]
[1754452952533,13.41756977,162.05,162.03,132.06]
[1754452952702,13.41756977,162.04,162.03,89.1]
[1754452953017,13.41756977,162.04,162.01,42.98]
[1754452953186,8.5850912,162.02,162.01,42.98]
[1754452953605,13.41943649,162.02,161.99,6.23307195]
[1754452953833,8.5850912,162.0,161.99,0.06]
[1754452954037,21.31486209,162.0,161.99,0.06]
[1754452954254,48.01486209,162.0,161.99,0.06]
[1754452955835,54.18770159,162.0,161.99,0.06]
[1754452956735,45.60261039,162.0,161.99,0.06]
[1754452956922,39.42977089,162.0,161.99,0.06]
[1754452957122,45.60261039,162.0,161.99,0.06]
[1754452957837,54.18770159,162.0,161.99,0.06]
[1754452959116,8.5850912,161.98,161.97,0.06]
[1754452959309,12.72977089,161.98,161.97,0.06]
[1754452960820,13.42977089,161.98,161.97,0.06]
[1754452961019,19.60337256,161.98,161.97,0.06]
[1754452966447,15.45869287,161.98,161.97,0.06]
[1754452966744,30.56490844,161.98,161.97,0.06]
[1754452966947,34.69841313,161.98,161.97,0.06]
[1754452968556,14.75869287,161.98,161.97,0.06]
[1754452969845,15.45869287,161.98,161.97,0.06]
[1754452971660,14.75869287,161.98,161.97,0.06]
[1754452973945,8.5850912,161.98,161.97,0.06]
[1754452974154,8.5850912,161.98,161.97,0.73]
[1754452976866,8.6150912,161.99,161.97,6.90398283]
[1754452977039,0.03,161.99,161.98,0.67]
[1754452978547,0.03,161.99,161.98,6.84360167]
[1754452980636,0.03,161.99,161.98,6.80360167]
[1754452982961,8.6150912,161.99,161.97,6.2338551]
[1754452983174,8.6150912,161.99,161.97,6.9038551]
[1754452983339,0.03,161.99,161.97,6.9038551]
[1754452983666,0.03,161.99,161.98,0.67]
[1754452985063,8.6150912,161.99,161.98,0.67]
[1754452986465,8.6150912,161.99,161.98,6.84360167]
[1754452986668,0.03,161.99,161.98,95.94360167]
[1754452992562,0.03,161.99,161.98,138.90360167]
[1754452995386,0.03,161.99,161.98,132.06]
[1754452995544,9.3350912,161.99,161.98,132.06]
[1754452996144,28.58754821,161.99,161.97,0.06]
[1754452996440,13.45133264,161.98,161.97,0.06]
[1754452997372,19.62493431,161.98,161.97,0.06]
[1754452997549,45.62493431,161.98,161.97,0.06]
[1754452998370,39.45133264,161.98,161.97,0.06]
[1754452998671,38.73133264,161.98,161.97,0.06]
[1754452999362,39.45133264,161.98,161.97,0.06]
[1754453001557,103.69114988,161.98,161.97,0.06]
[1754453002000,41.10621557,161.96,161.95,0.06]
[1754453002281,59.02808526,161.96,161.95,0.06]
[1754453002455,53.83754821,161.96,161.95,0.06]
[1754453002778,54.55754821,161.96,161.95,0.06]
[1754453003485,59.74808526,161.96,161.95,0.06]
[1754453003653,65.9224493,161.96,161.95,0.06]
[1754453005574,76.30998392,161.96,161.91,0.06]
[1754453005772,34.5850912,161.92,161.91,0.06]
[1754453005948,81.73133264,161.92,161.91,0.06]
[1754453006151,82.45133264,161.92,161.91,0.06]
[1754453007181,97.55754821,161.92,161.91,0.06]
[1754453007357,0.14216157,161.91,161.86,0.1]
[1754453007558,8.5850912,161.87,161.86,0.1]
[1754453007771,28.55402153,161.87,161.86,0.1]
[1754453008363,26.0,161.84,161.83,0.06]
[1754453008687,38.72266226,161.84,161.83,0.06]
[1754453008985,54.54887783,161.84,161.83,0.06]
[1754453009176,50.41130677,161.84,161.83,0.06]
[1754453009382,55.39195514,161.84,161.83,0.06]
[1754453009553,61.5708973,161.84,161.83,0.06]
[1754453011468,15.10621557,161.81,161.8,0.1]
[1754453011691,41.10621557,161.79,161.78,0.1]
[1754453011850,92.75130677,161.79,161.78,0.1]
[1754453012050,93.47130677,161.79,161.78,0.1]
[1754453014092,99.65215849,161.79,161.78,0.1]
[1754453014559,99.79432006,161.79,161.78,0.1]
[1754453016375,99.73432006,161.79,161.78,0.1]
[1754453019680,99.73432006,161.79,161.76,0.06]
[1754453019681,23.69130677,161.77,161.76,0.06]
[1754453019983,72.95292264,161.77,161.76,0.06]
[1754453020174,66.77130677,161.77,161.76,0.06]
[1754453021285,77.6850912,161.77,161.76,0.78]
[1754453022686,34.5850912,161.77,161.76,0.78]
[1754453022872,8.5850912,161.78,161.76,6.96199802]
[1754453023070,8.5850912,161.78,161.77,0.72]
[1754453024102,8.5850912,161.78,161.77,6.90161587]
[1754453024964,8.5850912,161.78,161.77,0.72]
[1754453025488,8.5850912,161.78,161.76,0.06]
[1754453025692,8.5850912,161.78,161.77,0.72]
[1754453032647,8.5850912,161.78,161.76,0.06]
[1754453032788,8.5850912,161.77,161.76,0.78]
[1754453032996,8.5850912,161.77,161.76,0.06]
[1754453033727,8.5850912,161.77,161.76,0.78]
[1754453033874,8.5850912,161.77,161.76,6.96199802]
[1754453034510,8.5850912,161.77,161.76,0.78]
[1754453035982,8.5850912,161.77,161.76,0.06]
[1754453036180,9.2450912,161.77,161.76,0.06]
[1754453036400,8.5850912,161.77,161.76,0.78]
[1754453036821,8.5850912,161.77,161.76,0.06]
[1754453038304,9.2450912,161.77,161.76,0.06]
[1754453038924,8.5850912,161.77,161.76,0.06]
[1754453041129,12.7000213,161.77,161.76,0.06]
[1754453042533,13.3600213,161.77,161.76,0.06]
[1754453042840,13.36290042,161.77,161.76,0.06]
[1754453043141,28.46911599,161.77,161.76,0.06]
[1754453043523,27.80911599,161.77,161.76,0.06]
[1754453044941,12.70290042,161.77,161.76,0.78]
[1754453045323,12.70290042,161.77,161.76,0.06]
[1754453047543,54.61127756,161.77,161.76,0.06]
[1754453047848,65.94015495,161.77,161.76,0.06]
[1754453048421,58.95637751,161.77,161.76,0.06]
[1754453049232,53.80911599,161.77,161.76,0.06]
[1754453049546,53.80911599,161.77,161.75,0.1]
[1754453049741,52.35380675,161.76,161.75,0.1]
[1754453049954,60.93889795,161.76,161.75,0.1]
[1754453050856,55.76290042,161.76,161.75,0.1]
[1754453051345,60.93889795,161.76,161.75,0.1]
[1754453053138,76.04511352,161.76,161.75,0.1]
[1754453053745,77.71111401,161.76,161.75,0.1]
[1754453053950,47.28859578,161.75,161.74,9.435]
[1754453054131,59.9914962,161.75,161.74,9.435]
[1754453054450,60.6514962,161.75,161.74,9.435]
[1754453055045,26.0,161.72,161.69,0.72]
[1754453055349,8.5850912,161.7,161.69,0.72]
[1754453055647,12.70290042,161.7,161.69,0.72]
[1754453058234,12.70290042,161.7,161.66,89.82]
[1754453058553,8.5850912,161.68,161.67,0.72]
[1754453058727,15.10621557,161.67,161.63,0.72]
[1754453058930,8.5850912,161.64,161.63,0.72]
[1754453059252,8.5850912,161.64,161.6,14.77321001]
[1754453059652,8.5850912,161.64,161.61,0.72]
[1754453060032,8.5850912,161.64,161.62,6.18735305]
[1754453060353,8.5850912,161.64,161.63,0.72]
[1754453061131,8.5850912,161.64,161.6,6.90781062]
[1754453061334,43.78,161.65,161.61,0.72]
[1754453061335,8.5850912,161.62,161.61,0.72]
[1754453061551,43.12,161.65,161.6,6.18781062]
[1754453061860,8.5850912,161.64,161.6,21.65810764]
[1754453062046,8.5850912,161.64,161.61,0.72]
[1754453062257,8.5850912,161.62,161.59,6.28840721]
[1754453062436,8.5850912,161.61,161.6,0.72]
[1754453063057,8.5850912,161.61,161.6,6.90811881]
[1754453063358,8.5850912,161.62,161.6,6.90811881]
[1754453063862,8.5850912,161.61,161.6,6.90811881]
[1754453064255,8.5850912,161.61,161.59,0.1]
[1754453064459,8.5850912,161.6,161.59,0.82]
[1754453064633,8.5850912,161.6,161.59,7.00850176]
[1754453065470,8.5850912,161.61,161.59,6.28850176]
[1754453065649,8.5850912,161.6,161.59,0.1]
[1754453066360,69.12,161.63,161.59,7.00833555]
[1754453066554,8.5850912,161.61,161.6,0.72]
[1754453066950,69.78,161.63,161.59,6.28833555]
[1754453067134,69.78,161.63,161.59,7.00833555]
[1754453067135,8.5850912,161.6,161.59,7.00833555]
[1754453067552,8.5850912,161.61,161.59,7.00833555]
[1754453067745,8.5850912,161.61,161.59,6.28833555]
[1754453068253,93.47130677,161.6,161.59,0.1]
[1754453069349,99.65942558,161.6,161.59,0.1]
[1754453070244,93.47130677,161.6,161.59,0.1]
[1754453070442,99.65942558,161.6,161.59,0.1]
[1754453070958,108.38667835,161.6,161.59,0.1]
[1754453072045,99.80158715,161.6,161.59,0.1]
[1754453074956,108.38667835,161.6,161.59,0.1]
[1754453075987,108.38667835,161.6,161.53,0.67]
[1754453075988,26.0,161.56,161.53,0.67]
[1754453076160,8.5850912,161.54,161.53,0.67]
[1754453076488,8.5850912,161.54,161.5,0.67]
[1754453076672,8.5850912,161.52,161.5,0.67]
[1754453076981,51.7450912,161.51,161.48,0.67]
[1754453077142,32.19082554,161.53,161.48,0.67]
[1754453077143,8.5850912,161.49,161.48,0.67]
[1754453077349,8.5850912,161.49,161.46,0.67]
[1754453077569,51.7450912,161.48,161.43,30.26631525]
[1754453078151,51.7450912,161.48,161.44,0.67]
[1754453078407,51.7450912,161.48,161.45,6.19386807]
[1754453078705,51.7450912,161.48,161.46,0.67]
[1754453078846,43.16,161.48,161.47,0.67]
[1754453079048,51.7450912,161.48,161.47,0.67]
[1754453079277,51.7450912,161.48,161.45,0.67]
[1754453079578,8.5850912,161.47,161.46,0.67]
[1754453079760,8.5850912,161.47,161.43,6.19454788]
[1754453079955,8.5850912,161.44,161.43,0.67]
[1754453080167,8.5850912,161.44,161.43,6.86463544]
[1754453080362,8.5850912,161.44,161.43,0.67]
[1754453080859,51.7850912,161.44,161.42,6.29484218]
[1754453081064,8.5850912,161.43,161.42,6.29484218]
[1754453081266,8.5850912,161.43,161.42,0.77]
[1754453081457,51.7850912,161.44,161.42,6.9650192]
[1754453081657,51.7850912,161.44,161.42,0.77]
[1754453081860,51.7850912,161.44,161.42,6.964974]
[1754453081861,43.2,161.44,161.42,6.964974]
[1754453082171,43.22,161.45,161.43,0.67]
[1754453082358,43.22,161.45,161.42,6.294974]
[1754453082562,51.8050912,161.45,161.44,0.67]
[1754453083351,51.8050912,161.45,161.43,6.19425884]
[1754453083352,8.5850912,161.45,161.43,6.19425884]
[1754453083553,8.5850912,161.44,161.43,6.86425884]
[1754453085353,8.5850912,161.45,161.43,6.86425884]
[1754453085554,69.22,161.46,161.44,0.67]
[1754453085790,8.5850912,161.45,161.44,0.67]
[1754453085956,26.0,161.46,161.45,0.67]
[1754453086163,34.5850912,161.46,161.45,0.67]
[1754453086863,26.0,161.45,161.43,6.86425884]
[1754453087079,34.5850912,161.45,161.43,6.86425884]
[1754453087393,9.2350912,161.44,161.42,6.29501174]
[1754453087562,26.0,161.44,161.43,0.67]
[1754453087883,43.22,161.48,161.43,9.2550912]
[1754453088080,51.8650912,161.51,161.47,8.5850912]
[1754453088270,43.28,161.51,161.48,0.67]
[1754453088461,69.28,161.51,161.47,8.5850912]
[1754453088655,69.28,161.51,161.49,0.67]
[1754453089107,9.2350912,161.5,161.45,0.67]
[1754453089272,72.39442229,161.51,161.45,0.67]
[1754453089273,8.5850912,161.47,161.45,0.67]
[1754453089464,51.8650912,161.47,161.43,6.86451717]
[1754453089663,43.93,161.47,161.43,0.67]
[1754453089877,8.5850912,161.45,161.43,0.67]
[1754453090077,34.5850912,161.44,161.42,0.1]
[1754453090276,8.5850912,161.43,161.42,0.1]
[1754453091293,8.5850912,161.44,161.42,0.1]
[1754453091468,8.5850912,161.44,161.42,6.96492891]
[1754453091664,6.19276929,161.48,161.42,6.96492891]
[1754453091665,8.5850912,161.49,161.43,9.2550912]
[1754453091984,77.9250912,161.49,161.44,9.2550912]
[1754453092182,77.9250912,161.49,161.45,0.67]
[1754453092592,69.34,161.49,161.45,9.2550912]
[1754453092770,69.34,161.49,161.46,0.67]
[1754453093181,69.34,161.49,161.47,0.67]
[1754453093371,77.9250912,161.49,161.47,0.67]
[1754453094100,77.9250912,161.49,161.45,6.86367683]
[1754453094793,8.5850912,161.47,161.43,0.67]
[1754453095009,8.5850912,161.44,161.42,0.1]
[1754453095226,43.36,161.45,161.42,0.1]
[1754453095494,15.10621557,161.49,161.43,0.67]
[1754453095495,51.9650912,161.47,161.43,0.67]
[1754453095702,51.9650912,161.47,161.42,14.88002384]
[1754453096019,51.9650912,161.47,161.43,0.67]
[1754453096169,8.5850912,161.46,161.43,0.67]
[1754453096971,52.6150912,161.47,161.43,0.67]
[1754453097183,43.38,161.47,161.44,0.67]
[1754453097396,43.38,161.47,161.45,0.67]
[1754453097588,51.9650912,161.47,161.43,0.67]
[1754453097898,52.6150912,161.47,161.43,0.67]
[1754453098088,52.6150912,161.47,161.43,6.86459872]
[1754453098607,8.5850912,161.46,161.43,0.67]
[1754453098805,8.5850912,161.46,161.43,6.86450774]
[1754453098971,26.0,161.48,161.42,0.1]
[1754453098972,51.9650912,161.45,161.42,0.1]
[1754453099170,52.6150912,161.45,161.42,0.1]
[1754453099888,51.9650912,161.45,161.42,6.29499711]
[1754453100100,8.5850912,161.44,161.42,0.1]
[1754453100297,8.5850912,161.43,161.42,0.1]
[1754453100787,8.5850912,161.44,161.42,0.1]
[1754453101510,70.03,161.45,161.42,0.1]
[1754453101511,8.5850912,161.43,161.42,0.1]
[1754453103499,9.2350912,161.43,161.42,0.1]
[1754453103919,52.6150912,161.43,161.42,0.1]
[1754453104083,56.71357833,161.43,161.42,0.1]
[1754453104288,58.80972664,161.43,161.42,0.1]
[1754453104488,62.90947168,161.43,161.42,0.1]
[1754453105121,78.01568725,161.43,161.42,0.1]
[1754453107716,62.90947168,161.43,161.42,0.1]
[1754453108903,88.90947168,161.43,161.42,0.1]
[1754453109935,62.90947168,161.43,161.42,0.1]
[1754453110109,78.15784882,161.43,161.42,0.1]
[1754453111306,83.3529303,161.43,161.42,0.1]
[1754453111527,83.21076873,161.43,161.42,0.1]
[1754453112594,17.87991772,161.43,161.42,0.1]
[1754453112793,38.68483624,161.43,161.42,0.1]
[1754453113028,56.04483624,161.43,161.42,0.1]
[1754453113554,62.23947168,161.43,161.42,0.1]
[1754453117029,56.04483624,161.43,161.42,0.1]
[1754453117531,62.23947168,161.43,161.42,0.1]
[1754453119730,62.93947168,161.43,161.42,0.1]
[1754453120209,15.10621557,161.42,161.41,0.06]
[1754453120410,32.95473561,161.42,161.41,0.06]
[1754453120616,33.65473561,161.42,161.41,0.06]
[1754453120827,39.84975481,161.42,161.41,0.06]
[1754453121129,30.09974504,161.42,161.41,0.73]
[1754453121310,82.16483624,161.42,161.41,0.73]
[1754453121516,82.16483624,161.42,161.41,0.06]
[1754453122025,88.35985544,161.42,161.41,0.06]
[1754453122205,89.05985544,161.42,161.41,0.06]
[1754453123230,80.47476424,161.42,161.41,0.06]
[1754453123528,88.35985544,161.42,161.41,0.06]
[1754453123713,82.16483624,161.42,161.41,0.73]
[1754453124031,4.09974504,161.42,161.41,0.73]
[1754453124330,30.09974504,161.42,161.41,0.73]
[1754453125107,30.79974504,161.42,161.41,0.06]
[1754453125320,89.11985544,161.42,161.41,0.06]
[1754453125522,94.28353924,161.42,161.41,0.06]
[1754453126923,109.38975481,161.42,161.41,0.06]
[1754453129331,104.22607101,161.42,161.41,0.06]
[1754453129538,109.38975481,161.42,161.41,0.06]
[1754453129738,88.41985544,161.42,161.41,0.06]
[1754453129909,47.63974504,161.42,161.41,0.73]
[1754453130240,82.20483624,161.42,161.41,0.73]
[1754453130447,88.39985544,161.42,161.41,0.06]
[1754453130865,89.09985544,161.42,161.41,0.06]
[1754453131026,78.20607101,161.42,161.41,0.06]
[1754453131350,83.36975481,161.42,161.41,0.06]
[1754453131655,83.51191638,161.42,161.41,0.06]
[1754453133334,77.50607101,161.42,161.41,0.06]
[1754453134145,78.19607101,161.42,161.41,0.06]
[1754453135146,77.50607101,161.42,161.41,0.06]
[1754453137749,12.68483624,161.42,161.41,0.72]
[1754453137964,82.22483624,161.42,161.41,0.72]
[1754453138253,56.22483624,161.42,161.41,0.72]
[1754453138550,88.41985544,161.42,161.41,0.06]
[1754453139058,62.41985544,161.42,161.41,0.06]
[1754453144361,67.58353924,161.42,161.41,0.06]
[1754453145253,82.22483624,161.42,161.41,0.72]
[1754453145452,30.09974504,161.42,161.41,0.72]
[1754453145754,38.68483624,161.42,161.41,0.72]
[1754453146356,4.09974504,161.42,161.41,0.72]
[1754453147065,4.09974504,161.42,161.41,6.91540301]
[1754453147659,43.54,161.46,161.41,15.50049421]
[1754453147844,4.15405159,161.45,161.42,9.2450912]
[1754453148049,4.15405159,161.44,161.43,0.66]
[1754453148693,4.15405159,161.44,161.43,9.2450912]
[1754453148840,4.15433583,161.46,161.43,9.2450912]
[1754453149038,14.85782331,161.48,161.44,0.66]
[1754453149243,4.15549687,161.47,161.44,0.66]
[1754453149547,4.15549687,161.46,161.44,0.66]
[1754453149746,26.0,161.46,161.44,0.66]
[1754453149960,4.15186333,161.45,161.44,0.66]
[1754453150248,26.0,161.46,161.44,0.66]
[1754453150444,4.15020251,161.45,161.44,0.66]
[1754453150762,26.0,161.46,161.44,0.66]
[1754453152258,26.0,161.46,161.45,0.66]
[1754453152462,30.14868704,161.46,161.45,0.66]
[1754453153174,26.0,161.46,161.45,0.66]
[1754453153679,14.85782331,161.48,161.45,6.85386807]
[1754453153680,6.27273211,161.48,161.45,6.85386807]
[1754453153891,6.27273211,161.48,161.45,6.19386807]
[1754453154045,6.27273211,161.48,161.46,0.66]
[1754453154376,6.27273211,161.48,161.47,0.66]
[1754453154568,10.4198296,161.48,161.47,0.66]
[1754453155372,14.85782331,161.48,161.47,0.66]
[1754453155751,14.85782331,161.48,161.45,0.66]
[1754453155958,8.5850912,161.46,161.45,0.66]
[1754453156169,8.5850912,161.46,161.44,6.19413647]
[1754453156350,8.5850912,161.47,161.44,6.19413647]
[1754453156575,8.7350912,161.47,161.44,6.19413647]
[1754453156758,8.7350912,161.47,161.45,0.66]
[1754453156964,8.5850912,161.46,161.45,0.66]
[1754453157296,8.5850912,161.46,161.43,6.19463544]
[1754453157297,8.5850912,161.46,161.42,6.1949974]
[1754453157463,8.5850912,161.45,161.43,0.66]
[1754453158285,8.5850912,161.45,161.43,89.76]
[1754453158656,26.0,161.45,161.44,0.66]
[1754453159779,8.7350912,161.47,161.44,6.85425173]
[1754453160101,0.15,161.47,161.45,0.66]
[1754453160426,40.85782331,161.48,161.45,89.76]
[1754453160590,6.27273211,161.48,161.46,0.66]
[1754453160800,6.27273211,161.48,161.47,6.19310088]
[1754453161103,6.27273211,161.48,161.47,0.66]
[1754453162901,6.27273211,161.48,161.47,15.28819208]
[1754453163102,6.27273211,161.48,161.47,6.70310088]
[1754453164608,15.56782331,161.48,161.41,0.06]
[1754453164931,8.5850912,161.44,161.42,6.8750192]
[1754453165130,8.5850912,161.46,161.43,0.68]
[1754453165335,6.27273211,161.48,161.43,9.2650912]
[1754453165513,14.85782331,161.48,161.44,0.68]
[1754453165711,8.5850912,161.47,161.44,0.68]
[1754453165911,14.85782331,161.48,161.44,0.68]
[1754453166225,6.27273211,161.48,161.45,6.19386807]
[1754453166427,14.85782331,161.48,161.46,0.68]
[1754453166621,14.85782331,161.48,161.47,0.68]
[1754453168414,6.27273211,161.48,161.45,6.19379507]
[1754453168616,14.85782331,161.48,161.46,0.68]
[1754453168827,8.5850912,161.47,161.44,6.19420368]
[1754453169018,8.5850912,161.45,161.41,44.26]
[1754453169212,8.5850912,161.44,161.41,43.58]
[1754453169425,8.5850912,161.44,161.42,0.68]
[1754453169827,8.5850912,161.44,161.42,6.87497224]
[1754453170016,0.71,161.47,161.42,6.87497224]
[1754453170219,8.5850912,161.44,161.43,0.68]
[1754453170715,8.5850912,161.44,161.41,43.58]
[1754453170911,8.5850912,161.42,161.41,43.58]
[1754453171123,0.71,161.44,161.41,43.58]
[1754453171124,26.71,161.44,161.41,43.58]
[1754453171341,8.5850912,161.42,161.41,44.26]
[1754453171514,26.71,161.44,161.41,50.4553685]
[1754453171839,8.5850912,161.43,161.41,50.4553685]
[1754453172041,8.5850912,161.42,161.41,43.58]
[1754453173648,9.2950912,161.42,161.41,0.06]
[1754453174019,8.5850912,161.43,161.41,0.74]
[1754453174815,8.5850912,161.47,161.42,8.5850912]
[1754453175028,0.03,161.5,161.45,8.5850912]
[1754453175236,0.03,161.5,161.46,52.0850912]
[1754453175434,0.03,161.5,161.47,0.68]
[1754453175951,0.03,161.5,161.48,0.68]
[1754453176639,0.03,161.5,161.47,6.19278582]
[1754453176842,34.6150912,161.5,161.47,6.87278582]
[1754453177353,34.6150912,161.5,161.48,0.68]
[1754453177354,0.03,161.5,161.48,0.68]
[1754453177665,0.03,161.5,161.49,0.68]
[1754453177822,0.03,161.5,161.49,9.2650912]
[1754453178024,0.03,161.5,161.49,15.59958666]
[1754453178716,0.03,161.5,161.49,50.39233389]
[1754453178954,0.03,161.5,161.49,50.37233389]
[1754453179206,8.6150912,161.5,161.49,43.5]
[1754453179471,9.3250912,161.5,161.46,49.71338994]
[1754453179662,8.5850912,161.49,161.46,50.39338994]
[1754453180242,8.5850912,161.49,161.46,44.2]
[1754453180766,8.5850912,161.48,161.46,43.52]
[1754453180945,8.5850912,161.47,161.46,43.52]
[1754453182195,8.5850912,161.47,161.42,6.8746415]
[1754453182353,8.5850912,161.45,161.43,43.5]
[1754453182538,8.5850912,161.45,161.43,44.18]
[1754453182948,8.5850912,161.45,161.43,43.5]
[1754453183190,8.5850912,161.44,161.43,43.5]
[1754453184752,8.5850912,161.44,161.41,43.56]
[1754453184753,9.2950912,161.44,161.41,43.56]
[1754453185076,8.5850912,161.42,161.41,43.56]
[1754453186151,8.5850912,161.43,161.41,44.24]
[1754453186349,8.5850912,161.43,161.42,0.68]
[1754453187480,26.0,161.45,161.42,0.68]
[1754453187766,8.5850912,161.43,161.42,0.68]
[1754453189071,8.5850912,161.43,161.41,43.56]
[1754453189280,8.5850912,161.42,161.41,43.56]
[1754453189588,9.2950912,161.42,161.41,0.06]
[1754453189791,26.0,161.42,161.41,0.74]
[1754453190784,8.5850912,161.43,161.41,0.74]
[1754453191701,39.44774889,161.42,161.41,0.06]
[1754453192065,38.73774889,161.42,161.41,0.06]
[1754453192302,39.44774889,161.42,161.41,0.06]
[1754453192907,30.15265769,161.42,161.41,0.06]
[1754453193102,26.0,161.42,161.41,0.06]
[1754453193405,8.5850912,161.43,161.41,0.06]
[1754453193406,0.71,161.47,161.41,0.74]
[1754453193705,8.5850912,161.44,161.41,0.74]
[1754453193863,8.5850912,161.44,161.42,0.67]
[1754453194360,8.5850912,161.43,161.41,0.06]